{"text_format":"3","workbook":"xlsx","n_sheets":1,"sheets":["الموازنة الشخصية الشهرية"],"read":"whole","date_system":"1900"}

{"sheet":"الموازنة الشخصية الشهرية","index":0,"n_rows":62,"n_cols":10,"rows_kept":62,"merged":[[0,1,0,9],[2,1,4,1],[2,2,2,3],[2,7,2,8],[3,2,3,3],[3,7,3,8],[4,2,4,3],[4,6,4,8],[5,1,7,1],[5,2,5,3],[5,7,5,8],[6,2,6,3],[6,7,6,8],[7,2,7,3],[7,6,7,8],[20,6,20,9],[21,1,21,4],[29,6,29,9],[31,1,31,4],[36,6,36,9],[38,1,38,4],[42,6,42,9],[44,1,44,4],[48,6,48,9],[52,1,52,4],[55,6,55,9]]}
[null,"الميزانية الشخصية الشهرية"]
[]
[null,"الدخل الشهري المتوقع","الدخل 1",null,{"v":2500,"d":"ر.س.‏ 2,500"},null,"إجمالي المصروفات المتوقعة ","(الدخل المتوقع ناقص المصروفات)",null,{"$f":"SUM(C21,C31,C38,C44,C52,C62,H20,H29,H36,H42,H48,H55)","v":{"v":2060,"d":"ر.س.‏ 2,060"}}]
[null,null,"الدخل الإضافي",null,{"v":500,"d":"ر.س.‏ 500"},null,"إجمالي المصروفات الفعلية ","(الدخل الفعلي ناقص المصروفات)",null,{"$f":"SUM(D21,D31,D38,D44,D52,D62,I20,I29,I36,I42,I48,I55)","v":{"v":2040,"d":"ر.س.‏ 2,040"}}]
[null,null,"إجمالي الدخل الشهري",null,{"$f":"SUM(E3:E4)","v":{"v":3000,"d":"ر.س.‏ 3,000"}},null,"إجمالي فرق المصروفات",null,null,{"$f":"SUM(E21,E31,E38,E44,E52,E62,J20,J29,J36,J42,J48,J55)","v":{"v":20,"d":"ر.س.‏ 20"}}]
[null,"الدخل الشهري الفعلي","الدخل 1",null,{"v":2500,"d":"ر.س.‏ 2,500"},null,"الميزانية المتوقعة","(الدخل المتوقع ناقص المصروفات)",null,{"$f":"E5-J3","v":{"v":940,"d":"ر.س.‏ 940"}}]
[null,null,"الدخل الإضافي",null,{"v":500,"d":"ر.س.‏ 500"},null,"الميزانية الفعلية","(الدخل الفعلي ناقص المصروفات)",null,{"$f":"E8-J4","v":{"v":960,"d":"ر.س.‏ 960"}}]
[null,null,"إجمالي الدخل الشهري",null,{"$f":"SUM(E6:E7)","v":{"v":3000,"d":"ر.س.‏ 3,000"}},null,"فرق الرصيد (الدخل الفعلي ناقص المتوقع)",null,null,{"$f":"J7-J6","v":{"v":20,"d":"ر.س.‏ 20"}}]
[]
[null,"السكن","التكلفة المتوقعة","التكلفة الفعلية","الفرق",null,"الترفيه","التكلفة المتوقعة","التكلفة الفعلية","الفرق"]
[null,"قسط الرهن أو الإيجار",{"v":1500,"d":"ر.س.‏ 1,500"},{"v":1400,"d":"ر.س.‏ 1,400"},{"$f":"السكن[[#This Row],[التكلفة المتوقعة]]-السكن[[#This Row],[التكلفة الفعلية]]","v":{"v":100,"d":"ر.س.‏ 100"}},null,"فيديو/DVD",{"v":0,"d":"ر.س.‏ 0"},{"v":50,"d":"ر.س.‏ 50"},{"$f":"الترفيه[[#This Row],[التكلفة المتوقعة]]-الترفيه[[#This Row],[التكلفة الفعلية]]","v":{"v":-50,"d":"-ر.س.‏ 50"}}]
[null,"رقم الهاتف",{"v":60,"d":"ر.س.‏ 60"},{"v":100,"d":"ر.س.‏ 100"},{"$f":"السكن[[#This Row],[التكلفة المتوقعة]]-السكن[[#This Row],[التكلفة الفعلية]]","v":{"v":-40,"d":"-ر.س.‏ 40"}},null,"الأقراص المضغوطة",null,null,{"$f":"الترفيه[[#This Row],[التكلفة المتوقعة]]-الترفيه[[#This Row],[التكلفة الفعلية]]","v":{"v":0,"d":"ر.س.‏ 0"}}]
[null,"الكهرباء",{"v":50,"d":"ر.س.‏ 50"},{"v":60,"d":"ر.س.‏ 60"},{"$f":"السكن[[#This Row],[التكلفة المتوقعة]]-السكن[[#This Row],[التكلفة الفعلية]]","v":{"v":-10,"d":"-ر.س.‏ 10"}},null,"الأفلام",null,null,{"$f":"الترفيه[[#This Row],[التكلفة المتوقعة]]-الترفيه[[#This Row],[التكلفة الفعلية]]","v":{"v":0,"d":"ر.س.‏ 0"}}]
[null,"وقود",{"v":200,"d":"ر.س.‏ 200"},{"v":180,"d":"ر.س.‏ 180"},{"$f":"السكن[[#This Row],[التكلفة المتوقعة]]-السكن[[#This Row],[التكلفة الفعلية]]","v":{"v":20,"d":"ر.س.‏ 20"}},null,"الحفلات الموسيقية",null,null,{"$f":"الترفيه[[#This Row],[التكلفة المتوقعة]]-الترفيه[[#This Row],[التكلفة الفعلية]]","v":{"v":0,"d":"ر.س.‏ 0"}}]
[null,"المياه والصرف",null,null,{"$f":"السكن[[#This Row],[التكلفة المتوقعة]]-السكن[[#This Row],[التكلفة الفعلية]]","v":{"v":0,"d":"ر.س.‏ 0"}},null,"الأحداث الرياضية",null,null,{"$f":"الترفيه[[#This Row],[التكلفة المتوقعة]]-الترفيه[[#This Row],[التكلفة الفعلية]]","v":{"v":0,"d":"ر.س.‏ 0"}}]
[null,"القنوات الفضائية",null,null,{"$f":"السكن[[#This Row],[التكلفة المتوقعة]]-السكن[[#This Row],[التكلفة الفعلية]]","v":{"v":0,"d":"ر.س.‏ 0"}},null,"المسرح المباشر",null,null,{"$f":"الترفيه[[#This Row],[التكلفة المتوقعة]]-الترفيه[[#This Row],[التكلفة الفعلية]]","v":{"v":0,"d":"ر.س.‏ 0"}}]
[null,"إزالة المهملات",null,null,{"$f":"السكن[[#This Row],[التكلفة المتوقعة]]-السكن[[#This Row],[التكلفة الفعلية]]","v":{"v":0,"d":"ر.س.‏ 0"}},null,"غير ذلك",null,null,{"$f":"الترفيه[[#This Row],[التكلفة المتوقعة]]-الترفيه[[#This Row],[التكلفة الفعلية]]","v":{"v":0,"d":"ر.س.‏ 0"}}]
[null,"الصيانة أو الإصلاحات",null,null,{"$f":"السكن[[#This Row],[التكلفة المتوقعة]]-السكن[[#This Row],[التكلفة الفعلية]]","v":{"v":0,"d":"ر.س.‏ 0"}},null,"غير ذلك",null,null,{"$f":"الترفيه[[#This Row],[التكلفة المتوقعة]]-الترفيه[[#This Row],[التكلفة الفعلية]]","v":{"v":0,"d":"ر.س.‏ 0"}}]
[null,"المستلزمات",null,null,{"$f":"السكن[[#This Row],[التكلفة المتوقعة]]-السكن[[#This Row],[التكلفة الفعلية]]","v":{"v":0,"d":"ر.س.‏ 0"}},null,"غير ذلك",null,null,{"$f":"الترفيه[[#This Row],[التكلفة المتوقعة]]-الترفيه[[#This Row],[التكلفة الفعلية]]","v":{"v":0,"d":"ر.س.‏ 0"}}]
[null,"غير ذلك",null,null,{"$f":"السكن[[#This Row],[التكلفة المتوقعة]]-السكن[[#This Row],[التكلفة الفعلية]]","v":{"v":0,"d":"ر.س.‏ 0"}},null,"الإجمالي",{"$f":"SUBTOTAL(109,الترفيه[التكلفة المتوقعة])","v":{"v":0,"d":"ر.س.‏ 0"}},{"$f":"SUBTOTAL(109,الترفيه[التكلفة الفعلية])","v":{"v":50,"d":"ر.س.‏ 50"}},{"$f":"SUBTOTAL(109,الترفيه[الفرق])","v":{"v":-50,"d":"-ر.س.‏ 50"}}]
[null,"الإجمالي",{"$f":"SUBTOTAL(109,السكن[التكلفة المتوقعة])","v":{"v":1810,"d":"ر.س.‏ 1,810"}},{"$f":"SUBTOTAL(109,السكن[التكلفة الفعلية])","v":{"v":1740,"d":"ر.س.‏ 1,740"}},{"$f":"SUBTOTAL(109,السكن[الفرق])","v":{"v":70,"d":"ر.س.‏ 70"}}]
[{"$nulls":6},"القروض","التكلفة المتوقعة","التكلفة الفعلية","الفرق"]
[null,"وسيلة النقل","التكلفة المتوقعة","التكلفة الفعلية","الفرق",null,"شخصية",null,null,{"$f":"القروض[[#This Row],[التكلفة المتوقعة]]-القروض[[#This Row],[التكلفة الفعلية]]","v":{"v":0,"d":"ر.س.‏ 0"}}]
[null,"مدفوعات السيارة",{"v":250,"d":"ر.س.‏ 250"},{"v":250,"d":"ر.س.‏ 250"},{"$f":"وسائل_النقل[[#This Row],[التكلفة المتوقعة]]-وسائل_النقل[[#This Row],[التكلفة الفعلية]]","v":{"v":0,"d":"ر.س.‏ 0"}},null,"طالب",null,null,{"$f":"القروض[[#This Row],[التكلفة المتوقعة]]-القروض[[#This Row],[التكلفة الفعلية]]","v":{"v":0,"d":"ر.س.‏ 0"}}]
[null,"أجرة الحافلة/التاكسي",null,null,{"$f":"وسائل_النقل[[#This Row],[التكلفة المتوقعة]]-وسائل_النقل[[#This Row],[التكلفة الفعلية]]","v":{"v":0,"d":"ر.س.‏ 0"}},null,"بطاقة الائتمان",null,null,{"$f":"القروض[[#This Row],[التكلفة المتوقعة]]-القروض[[#This Row],[التكلفة الفعلية]]","v":{"v":0,"d":"ر.س.‏ 0"}}]
[null,"التأمين",null,null,{"$f":"وسائل_النقل[[#This Row],[التكلفة المتوقعة]]-وسائل_النقل[[#This Row],[التكلفة الفعلية]]","v":{"v":0,"d":"ر.س.‏ 0"}},null,"بطاقة الائتمان",null,null,{"$f":"القروض[[#This Row],[التكلفة المتوقعة]]-القروض[[#This Row],[التكلفة الفعلية]]","v":{"v":0,"d":"ر.س.‏ 0"}}]
[null,"الترخيص",null,null,{"$f":"وسائل_النقل[[#This Row],[التكلفة المتوقعة]]-وسائل_النقل[[#This Row],[التكلفة الفعلية]]","v":{"v":0,"d":"ر.س.‏ 0"}},null,"بطاقة الائتمان",null,null,{"$f":"القروض[[#This Row],[التكلفة المتوقعة]]-القروض[[#This Row],[التكلفة الفعلية]]","v":{"v":0,"d":"ر.س.‏ 0"}}]
[null,"الوقود",null,null,{"$f":"وسائل_النقل[[#This Row],[التكلفة المتوقعة]]-وسائل_النقل[[#This Row],[التكلفة الفعلية]]","v":{"v":0,"d":"ر.س.‏ 0"}},null,"غير ذلك",null,null,{"$f":"القروض[[#This Row],[التكلفة المتوقعة]]-القروض[[#This Row],[التكلفة الفعلية]]","v":{"v":0,"d":"ر.س.‏ 0"}}]
[null,"الصيانة",null,null,{"$f":"وسائل_النقل[[#This Row],[التكلفة المتوقعة]]-وسائل_النقل[[#This Row],[التكلفة الفعلية]]","v":{"v":0,"d":"ر.س.‏ 0"}},null,"الإجمالي",{"$f":"SUBTOTAL(109,القروض[التكلفة المتوقعة])","v":{"v":0,"d":"ر.س.‏ 0"}},{"$f":"SUBTOTAL(109,القروض[التكلفة الفعلية])","v":{"v":0,"d":"ر.س.‏ 0"}},{"$f":"SUBTOTAL(109,القروض[الفرق])","v":{"v":0,"d":"ر.س.‏ 0"}}]
[null,"غير ذلك",null,null,{"$f":"وسائل_النقل[[#This Row],[التكلفة المتوقعة]]-وسائل_النقل[[#This Row],[التكلفة الفعلية]]","v":{"v":0,"d":"ر.س.‏ 0"}}]
[null,"الإجمالي",{"$f":"SUBTOTAL(109,وسائل_النقل[التكلفة المتوقعة])","v":{"v":250,"d":"ر.س.‏ 250"}},{"$f":"SUBTOTAL(109,وسائل_النقل[التكلفة الفعلية])","v":{"v":250,"d":"ر.س.‏ 250"}},{"$f":"SUBTOTAL(109,وسائل_النقل[الفرق])","v":{"v":0,"d":"ر.س.‏ 0"}},null,"الضرائب","التكلفة المتوقعة","التكلفة الفعلية","الفرق"]
[{"$nulls":6},"فيدرالي",null,null,{"$f":"الضرائب[[#This Row],[التكلفة المتوقعة]]-الضرائب[[#This Row],[التكلفة الفعلية]]","v":{"v":0,"d":"ر.س.‏ 0"}}]
[null,"التأمين","التكلفة المتوقعة","التكلفة الفعلية","الفرق",null,"الولاية",null,null,{"$f":"الضرائب[[#This Row],[التكلفة المتوقعة]]-الضرائب[[#This Row],[التكلفة الفعلية]]","v":{"v":0,"d":"ر.س.‏ 0"}}]
[null,"المنزل",null,null,{"$f":"التأمين[[#This Row],[التكلفة المتوقعة]]-التأمين[[#This Row],[التكلفة الفعلية]]","v":{"v":0,"d":"ر.س.‏ 0"}},null,"المحلية",null,null,{"$f":"الضرائب[[#This Row],[التكلفة المتوقعة]]-الضرائب[[#This Row],[التكلفة الفعلية]]","v":{"v":0,"d":"ر.س.‏ 0"}}]
[null,"صحي",null,null,{"$f":"التأمين[[#This Row],[التكلفة المتوقعة]]-التأمين[[#This Row],[التكلفة الفعلية]]","v":{"v":0,"d":"ر.س.‏ 0"}},null,"غير ذلك",null,null,{"$f":"الضرائب[[#This Row],[التكلفة المتوقعة]]-الضرائب[[#This Row],[التكلفة الفعلية]]","v":{"v":0,"d":"ر.س.‏ 0"}}]
[null,"حياة",null,null,{"$f":"التأمين[[#This Row],[التكلفة المتوقعة]]-التأمين[[#This Row],[التكلفة الفعلية]]","v":{"v":0,"d":"ر.س.‏ 0"}},null,"الإجمالي",{"$f":"SUBTOTAL(109,الضرائب[التكلفة المتوقعة])","v":{"v":0,"d":"ر.س.‏ 0"}},{"$f":"SUBTOTAL(109,الضرائب[التكلفة الفعلية])","v":{"v":0,"d":"ر.س.‏ 0"}},{"$f":"SUBTOTAL(109,الضرائب[الفرق])","v":{"v":0,"d":"ر.س.‏ 0"}}]
[null,"غير ذلك",null,null,{"$f":"التأمين[[#This Row],[التكلفة المتوقعة]]-التأمين[[#This Row],[التكلفة الفعلية]]","v":{"v":0,"d":"ر.س.‏ 0"}}]
[null,"الإجمالي",{"$f":"SUBTOTAL(109,التأمين[التكلفة المتوقعة])","v":{"v":0,"d":"ر.س.‏ 0"}},{"$f":"SUBTOTAL(109,التأمين[التكلفة الفعلية])","v":{"v":0,"d":"ر.س.‏ 0"}},{"$f":"SUBTOTAL(109,التأمين[الفرق])","v":{"v":0,"d":"ر.س.‏ 0"}},null,"المدخرات أو الاستثمارات","التكلفة المتوقعة","التكلفة الفعلية","الفرق"]
[{"$nulls":6},"حساب التقاعد",null,null,{"$f":"المدخرات_أو_الاستثمار[[#This Row],[التكلفة المتوقعة]]-المدخرات_أو_الاستثمار[[#This Row],[التكلفة الفعلية]]","v":{"v":0,"d":"ر.س.‏ 0"}}]
[null,"الطعام","التكلفة المتوقعة","التكلفة الفعلية","الفرق",null,"حساب الاستثمار",null,null,{"$f":"المدخرات_أو_الاستثمار[[#This Row],[التكلفة المتوقعة]]-المدخرات_أو_الاستثمار[[#This Row],[التكلفة الفعلية]]","v":{"v":0,"d":"ر.س.‏ 0"}}]
[null,"البقالة",null,null,{"$f":"الطعام[[#This Row],[التكلفة المتوقعة]]-الطعام[[#This Row],[التكلفة الفعلية]]","v":{"v":0,"d":"ر.س.‏ 0"}},null,"غير ذلك",null,null,{"$f":"المدخرات_أو_الاستثمار[[#This Row],[التكلفة المتوقعة]]-المدخرات_أو_الاستثمار[[#This Row],[التكلفة الفعلية]]","v":{"v":0,"d":"ر.س.‏ 0"}}]
[null,"الطعام خارج المنزل",null,null,{"$f":"الطعام[[#This Row],[التكلفة المتوقعة]]-الطعام[[#This Row],[التكلفة الفعلية]]","v":{"v":0,"d":"ر.س.‏ 0"}},null,"الإجمالي",{"$f":"SUBTOTAL(109,المدخرات_أو_الاستثمار[التكلفة المتوقعة])","v":{"v":0,"d":"ر.س.‏ 0"}},{"$f":"SUBTOTAL(109,المدخرات_أو_الاستثمار[التكلفة الفعلية])","v":{"v":0,"d":"ر.س.‏ 0"}},{"$f":"SUBTOTAL(109,المدخرات_أو_الاستثمار[الفرق])","v":{"v":0,"d":"ر.س.‏ 0"}}]
[null,"غير ذلك",null,null,{"$f":"الطعام[[#This Row],[التكلفة المتوقعة]]-الطعام[[#This Row],[التكلفة الفعلية]]","v":{"v":0,"d":"ر.س.‏ 0"}}]
[null,"الإجمالي",{"$f":"SUBTOTAL(109,الطعام[التكلفة المتوقعة])","v":{"v":0,"d":"ر.س.‏ 0"}},{"$f":"SUBTOTAL(109,الطعام[التكلفة الفعلية])","v":{"v":0,"d":"ر.س.‏ 0"}},{"$f":"SUBTOTAL(109,الطعام[الفرق])","v":{"v":0,"d":"ر.س.‏ 0"}},null,"الهدايا والتبرعات","التكلفة المتوقعة","التكلفة الفعلية","الفرق"]
[{"$nulls":6},"عمل خيري 1",null,null,{"$f":"الهدايا_والتبرعات[[#This Row],[التكلفة المتوقعة]]-الهدايا_والتبرعات[[#This Row],[التكلفة الفعلية]]","v":{"v":0,"d":"ر.س.‏ 0"}}]
[null,"الحيوانات الأليفة","التكلفة المتوقعة","التكلفة الفعلية","الفرق",null,"عمل خيري 2",null,null,{"$f":"الهدايا_والتبرعات[[#This Row],[التكلفة المتوقعة]]-الهدايا_والتبرعات[[#This Row],[التكلفة الفعلية]]","v":{"v":0,"d":"ر.س.‏ 0"}}]
[null,"الطعام",null,null,{"$f":"الحيوانات_الأليفة[[#This Row],[التكلفة المتوقعة]]-الحيوانات_الأليفة[[#This Row],[التكلفة الفعلية]]","v":{"v":0,"d":"ر.س.‏ 0"}},null,"عمل خيري 3",null,null,{"$f":"الهدايا_والتبرعات[[#This Row],[التكلفة المتوقعة]]-الهدايا_والتبرعات[[#This Row],[التكلفة الفعلية]]","v":{"v":0,"d":"ر.س.‏ 0"}}]
[null,"المتطلبات الطبية",null,null,{"$f":"الحيوانات_الأليفة[[#This Row],[التكلفة المتوقعة]]-الحيوانات_الأليفة[[#This Row],[التكلفة الفعلية]]","v":{"v":0,"d":"ر.س.‏ 0"}},null,"الإجمالي",{"$f":"SUBTOTAL(109,الهدايا_والتبرعات[التكلفة المتوقعة])","v":{"v":0,"d":"ر.س.‏ 0"}},{"$f":"SUBTOTAL(109,الهدايا_والتبرعات[التكلفة الفعلية])","v":{"v":0,"d":"ر.س.‏ 0"}},{"$f":"SUBTOTAL(109,الهدايا_والتبرعات[الفرق])","v":{"v":0,"d":"ر.س.‏ 0"}}]
[null,"التدليل",null,null,{"$f":"الحيوانات_الأليفة[[#This Row],[التكلفة المتوقعة]]-الحيوانات_الأليفة[[#This Row],[التكلفة الفعلية]]","v":{"v":0,"d":"ر.س.‏ 0"}}]
[null,"الدمى",null,null,{"$f":"الحيوانات_الأليفة[[#This Row],[التكلفة المتوقعة]]-الحيوانات_الأليفة[[#This Row],[التكلفة الفعلية]]","v":{"v":0,"d":"ر.س.‏ 0"}},null,"المتطلبات القانونية","التكلفة المتوقعة","التكلفة الفعلية","الفرق"]
[null,"غير ذلك",null,null,{"$f":"الحيوانات_الأليفة[[#This Row],[التكلفة المتوقعة]]-الحيوانات_الأليفة[[#This Row],[التكلفة الفعلية]]","v":{"v":0,"d":"ر.س.‏ 0"}},null,"محامي",null,null,{"$f":"المتطلبات_القانونية[[#This Row],[التكلفة المتوقعة]]-المتطلبات_القانونية[[#This Row],[التكلفة الفعلية]]","v":{"v":0,"d":"ر.س.‏ 0"}}]
[null,"الإجمالي",{"$f":"SUBTOTAL(109,الحيوانات_الأليفة[التكلفة المتوقعة])","v":{"v":0,"d":"ر.س.‏ 0"}},{"$f":"SUBTOTAL(109,الحيوانات_الأليفة[التكلفة الفعلية])","v":{"v":0,"d":"ر.س.‏ 0"}},{"$f":"SUBTOTAL(109,الحيوانات_الأليفة[الفرق])","v":{"v":0,"d":"ر.س.‏ 0"}},null,"نفقة الزوجة",null,null,{"$f":"المتطلبات_القانونية[[#This Row],[التكلفة المتوقعة]]-المتطلبات_القانونية[[#This Row],[التكلفة الفعلية]]","v":{"v":0,"d":"ر.س.‏ 0"}}]
[{"$nulls":6},"مدفوعات الرهن أو الدين",null,null,{"$f":"المتطلبات_القانونية[[#This Row],[التكلفة المتوقعة]]-المتطلبات_القانونية[[#This Row],[التكلفة الفعلية]]","v":{"v":0,"d":"ر.س.‏ 0"}}]
[null,"الرعاية الشخصية","التكلفة المتوقعة","التكلفة الفعلية","الفرق",null,"غير ذلك",null,null,{"$f":"المتطلبات_القانونية[[#This Row],[التكلفة المتوقعة]]-المتطلبات_القانونية[[#This Row],[التكلفة الفعلية]]","v":{"v":0,"d":"ر.س.‏ 0"}}]
[null,"المتطلبات الطبية",null,null,{"$f":"العناية_الشخصية[[#This Row],[التكلفة المتوقعة]]-العناية_الشخصية[[#This Row],[التكلفة الفعلية]]","v":{"v":0,"d":"ر.س.‏ 0"}},null,"الإجمالي",{"$f":"SUBTOTAL(109,المتطلبات_القانونية[التكلفة المتوقعة])","v":{"v":0,"d":"ر.س.‏ 0"}},{"$f":"SUBTOTAL(109,المتطلبات_القانونية[التكلفة الفعلية])","v":{"v":0,"d":"ر.س.‏ 0"}},{"$f":"SUBTOTAL(109,المتطلبات_القانونية[الفرق])","v":{"v":0,"d":"ر.س.‏ 0"}}]
[null,"الشعر/الأظافر",null,null,{"$f":"العناية_الشخصية[[#This Row],[التكلفة المتوقعة]]-العناية_الشخصية[[#This Row],[التكلفة الفعلية]]","v":{"v":0,"d":"ر.س.‏ 0"}}]
[null,"الملابس",null,null,{"$f":"العناية_الشخصية[[#This Row],[التكلفة المتوقعة]]-العناية_الشخصية[[#This Row],[التكلفة الفعلية]]","v":{"v":0,"d":"ر.س.‏ 0"}}]
[null,"التنظيف الجاف",null,null,{"$f":"العناية_الشخصية[[#This Row],[التكلفة المتوقعة]]-العناية_الشخصية[[#This Row],[التكلفة الفعلية]]","v":{"v":0,"d":"ر.س.‏ 0"}}]
[null,"النادي الصحي",null,null,{"$f":"العناية_الشخصية[[#This Row],[التكلفة المتوقعة]]-العناية_الشخصية[[#This Row],[التكلفة الفعلية]]","v":{"v":0,"d":"ر.س.‏ 0"}}]
[null,"مستحقات المؤسسة أو رسومها",null,null,{"$f":"العناية_الشخصية[[#This Row],[التكلفة المتوقعة]]-العناية_الشخصية[[#This Row],[التكلفة الفعلية]]","v":{"v":0,"d":"ر.س.‏ 0"}}]
[null,"غير ذلك",null,null,{"$f":"العناية_الشخصية[[#This Row],[التكلفة المتوقعة]]-العناية_الشخصية[[#This Row],[التكلفة الفعلية]]","v":{"v":0,"d":"ر.س.‏ 0"}}]
[null,"الإجمالي",{"$f":"SUBTOTAL(109,العناية_الشخصية[التكلفة المتوقعة])","v":{"v":0,"d":"ر.س.‏ 0"}},{"$f":"SUBTOTAL(109,العناية_الشخصية[التكلفة الفعلية])","v":{"v":0,"d":"ر.س.‏ 0"}},{"$f":"SUBTOTAL(109,العناية_الشخصية[الفرق])","v":{"v":0,"d":"ر.س.‏ 0"}}]